Cogmind - Beta 13 X1 @@@ ROGUE MODE // 2023.12.01 @ 12:49:29 Player: youngster Result: Destroyed by 8R-AWN with 8R-AWN's Boregun Performance ------------- Evolutions (0) 0 Regions Visited (3) 600 Robots Destroyed (29) 145 Value Destroyed (581) 581 Prototype IDs (18) 360 Alien Tech Used (0) 0 Bonus (-354) -354 TOTAL SCORE: 1332 Bonus ------- Friendly Fire -354 Cogmind --------- Core Integrity 0/250 Matter 300/300 Energy 224/250 System Corruption 4% Temperature Cool (0) Movement Treading (240) Ox1 Location -10/Exiles Parts ------- > --- POWER (1) -------- Ion Engine > --- PROPULSION (2) --- Light Treads Light Treads > --- UTILITY (2) ------ High-capacity Storage Unit Splice Drone Bay (6/6) > --- WEAPON (2) ------- Light Assault Rifle Light Assault Rifle > --- INVENTORY (20) --- Light Treads Light Treads Light Treads Compact Wheel Compact Wheel EM Pulse Gun Light Assault Rifle Light Assault Rifle Heavy Battle Rifle Grenade Launcher Improved Datajack Peak State ------------ > --- POWER ------------ Subdweller Power Source > --- PROPULSION ------- Light Treads Compact Wheel > --- UTILITY ---------- Huge Storage Unit Splice Drone Bay > --- WEAPON ----------- Ion Cannon Light Assault Rifle > --- INVENTORY -------- Ion Engine Light Treads Light Treads Light Treads Light Treads Light Treads Compact Wheel High-capacity Storage Unit High-capacity Matter Pod Improved Terrain Scanner Seismic Detector Targeting Computer Improved Trap Extractor Small Laser Light Assault Rifle Light Assault Rifle Light Assault Rifle Subdweller Machine Gun Heavy Battle Rifle Grenade Launcher Improved Datajack Plasma Cutter Plasma Cutter Plasma Cutter Plasma Cutter [Rating: 20] Favorites ----------- Power Subdweller Power Source Engine Subdweller Power Source Power Core Light Nuclear Core Propulsion Light Treads Treads Light Treads Wheel Compact Wheel Utility High-capacity Storage Unit Device Splice Drone Bay Storage High-capacity Storage Unit Weapon Light Assault Rifle Energy Gun EM Pulse Gun Energy Cannon Ion Cannon Ballistic Gun Light Assault Rifle Launcher Grenade Launcher Special Weapon Plasma Cutter Special Melee Weapon Improved Datajack Build | -11 -10 -10 -10 ------- Run | Jun Mat Min Exi Slots Evolved . | . . . . Power . | . . . . Propulsion . | . . . . Utility . | . . . . Weapon . | . . . . Parts Attached 65 | 7 28 17 13 Power 8 | 1 3 3 1 Engine 7 | 1 2 3 1 Core 1 | . 1 . . Reactor . | . . . . Propulsion 12 | 2 7 1 2 Treads 8 | 2 4 . 2 Leg . | . . . . Wheel 4 | . 3 1 . Hover . | . . . . Flight . | . . . . Utility 14 | 2 6 3 3 Device 8 | 1 4 3 . Storage 6 | 1 2 . 3 Processor . | . . . . Hackware . | . . . . Protection . | . . . . Artifact . | . . . . Weapon 31 | 2 12 10 7 Energy Gun 6 | . 2 4 . Energy Cannon 1 | . . 1 . Ballistic Gun 8 | 2 3 1 2 Ballistic Cannon . | . . . . Launcher 8 | . 5 2 1 Special Weapon 7 | . 2 1 4 Impact Weapon . | . . . . Slashing Weapon . | . . . . Piercing Weapon . | . . . . Special Melee Weapon 1 | . . 1 . Unidentified Prototypes 1 | . . 1 . Parts Lost 11 | . 4 1 6 Power 2 | . 1 . 1 Propulsion 2 | . 1 . 1 Utility 2 | . 1 1 . Weapon 5 | . 1 . 4 Highest Loss Streak 6 | . 4 1 6 To Critical Strikes 1 | . . . 1 Average Slot Usage (%) 94 | . 99 99 85 Engine 13 | . 11 14 13 Treads 15 | . 18 14 14 Wheel 12 | . 9 14 13 Device 13 | . 14 13 14 Storage 14 | . 14 14 14 Energy Gun 6 | . 7 13 . Ballistic Gun 10 | . 16 14 . Special Weapon 1 | . 4 . 1 Special Melee Weapon 4 | . . . 13 Naked Turns . | . . . . Heaviest Build 96 | 14 90 96 93 Greatest Support 40 | 40 40 16 16 Greatest Overweight (x) 5 | 1 5 5 5 Average Overweight (x) 3 | . 2 5 3 Largest Inventory Capacity 25 | 8 25 25 25 Average Capacity 21 | 7 19 25 21 Most Carried 25 | 5 23 25 25 Average Carried 18 | 2 13 24 20 Final Capacity 25 | 8 25 25 20 Final Carried 25 | 4 22 25 11 Class Distribution -------------------- 97% | Mutant Dominant Class ---------------- Mutant | -10/Materials Mutant | -10/Mines Mutant | -10/Exiles Resources | -11 -10 -10 -10 ----------- Run | Jun Mat Min Exi Matter Collected 1604 | 282 695 306 321 Remotely . | . . . . Salvage Created 889 | 112 630 134 13 Parts 56 | 5 41 10 . Haulers Intercepted 2 | . 2 . . Recyclers Shooed 2 | . 1 1 . Parts Field Recycled . | . . . . Retrieved Matter . | . . . . Parts Self-Destructed . | . . . . Prevented . | . . . . Kills | -11 -10 -10 -10 ------- Run | Jun Mat Min Exi Combat Hostiles Destroyed 29 | . 14 10 5 Guns 7 | . 7 . . AOE 22 | . 7 10 5 Classes Destroyed 9 | 2 6 1 . Worker 1 | . 1 . . Tunneler 2 | 1 1 . . Hauler 2 | . 2 . . Recycler 3 | 1 1 1 . Operator 1 | . 1 . . Swarmer 9 | . 3 6 . Grunt 8 | . 8 . . Subdweller 3 | . 3 . . Assembled 11 | . . 4 7 Best Kill Streak 5 | 2 3 4 5 Combat Bots Only 5 | . 3 4 5 Max Kills in Single Turn 3 | 1 2 3 2 Gunslinging . | . . . . Exploded 3 | . 2 3 2 Melee . | . . . . Uniques/NPCs Destroyed . | . . . . Combat | -11 -10 -10 -10 -------- Run | Jun Mat Min Exi Damage Taken 1747 | . 747 147 853 Core 255 | . 95 16 144 Absorbed by Shields . | . . . . Regen/Repaired (Parts) 303 | . 303 . . Core Remaining (%) 100 | 100 . . . Volleys Fired 94 | 3 60 9 22 Largest 2 | 2 2 2 2 Hottest 60 | 40 60 60 40 Shots Fired 166 | 6 110 13 37 Gun 130 | 6 101 7 16 Cannon . | . . . . Launcher 19 | . 7 6 6 Special 17 | . 2 . 15 Kinetic 113 | 6 87 4 16 Thermal 14 | . 14 . . Explosive 19 | . 7 6 6 Electromagnetic 3 | . . 3 . Impact 17 | . 2 . 15 Robot Hit Streak 19 | 2 19 3 6 Robot Miss Streak 4 | 1 4 1 3 Penetration Max . | . . . . Secondary Targets . | . . . . Shots Hit Robots 110 | 4 75 4 27 Core Hits 77 | 3 38 17 19 Critical Kills . | . . . . Critical Parts Destroyed 1 | 1 . . . Critical Strikes 3 | 1 . 1 1 Destroy 1 | 1 . . . Corrupt 1 | . . 1 . Sever 1 | . . . 1 Melee Attacks 5 | . . . 5 Impact . | . . . . Slashing . | . . . . Piercing . | . . . . Sneak Attacks 5 | . . . 5 Combat Hostiles . | . . . . Follow-up Attacks . | . . . . Damage Inflicted 2458 | 43 1231 509 675 Guns 918 | 43 736 40 99 Cannons . | . . . . Explosions 1397 | . 482 434 481 Melee . | . . . . Ramming 35 | . . 35 . Kinetic 811 | 43 659 10 99 Thermal 77 | . 77 . . Explosive 1397 | . 482 434 481 Electromagnetic 30 | . . 30 . Impact 108 | . 13 . 95 Slashing . | . . . . Piercing . | . . . . Highest Corruption 4 | . 4 4 4 Average Corruption 3 | . 3 4 4 Corruption Purged . | . . . . Corruption Blocked . | . . . . Effects 102 | . 41 29 32 Message Errors 28 | . 14 5 9 Matter Fused 25 | . 7 7 11 Heat Flow Errors 12 | . 7 3 2 Energy Discharges 17 | . 6 6 5 Data Loss (minor) 11 | . 3 5 3 Data Loss (major) 2 | . 2 . . Misfires 2 | . . 2 . Alerts 2 | . . 1 1 Weapon Failures 3 | . 2 . 1 Overload Shots . | . . . . Overflow Damage 25 | . 11 10 4 Projectiles . | . . . . Explosions 25 | . 11 10 4 Melee . | . . . . Knockbacks 1 | . . 1 . Impact 1 | . . 1 . Kinetic . | . . . . Secondary . | . . . . Self-Inflicted Damage 76 | . 32 24 20 Shots 3 | . 1 1 1 Rammed 1 | . . 1 . Targets Rammed 1 | . . 1 . Kicked . | . . . . Crushed . | . . . . Highest Temperature 271 | . 240 271 241 Average Temperature 73 | . 62 93 119 Received Heat Transfer 255 | . 255 . . Siege Activations . | . . . . Robots Corrupted . | . . . . Combat Hostiles . | . . . . Parts Fried . | . . . . Impact Corruptions . | . . . . Robots Melted . | . . . . Combat Hostiles . | . . . . Parts Melted . | . . . . Heat Transferred 175 | . 175 . . Parts Sabotaged . | . . . . Parts Stolen . | . . . . Parts Stripped . | . . . . Power Chain Reactions . | . . . . Missiles Intercepted . | . . . . Alert | -11 -10 -10 -10 ------- Run | Jun Mat Min Exi Peak Influence 203 | 10 162 203 . Initial 17 | . 6 17 . Average 57 | 2 59 57 . Maximum Alert Level 1 | . . 1 . Low Security (%) 95 | 100 100 88 . Level 1 4 | . . 11 . Level 2 . | . . . . Level 3 . | . . . . Level 4 . | . . . . Level 5 . | . . . . High Security . | . . . . Max Security . | . . . . Squads Dispatched 2 | . 2 . . Investigation 1 | . 1 . . Extermination . | . . . . Reinforcement 1 | . 1 . . Assault . | . . . . Garrison . | . . . . Intercept . | . . . . Searches Triggered . | . . . . Construction Impeded . | . . . . Haulers Reinforced . | . . . . Active Scanning Responses . | . . . . Cargo Convoy Interrupts . | . . . . Stealth | -11 -10 -10 -10 --------- Run | Jun Mat Min Exi Distress Signals 1 | . 1 . . Communications Jammed . | . . . . Distress Signals . | . . . . Times Spotted 34 | . 21 7 6 Peak Tracking Total 7 | . 4 4 7 Tactical Retreats . | . . . . Traps | -11 -10 -10 -10 ------- Run | Jun Mat Min Exi Traps Triggered 3 | . 3 . . Indirectly . | . . . . Trap Hack Attempts . | . . . . Triggered . | . . . . Disarmed . | . . . . Reprogrammed . | . . . . Reused . | . . . . Traps Extracted . | . . . . Installed . | . . . . Triggered . | . . . . Machines | -11 -10 -10 -10 ---------- Run | Jun Mat Min Exi Machines Disabled 4 | . 1 1 2 Max in Single Turn 2 | . 1 1 2 Machines Repaired . | . . . . Machines Sabotaged . | . . . . Overloaded Fab Kills . | . . . . Hacking | -11 -10 -10 -10 --------- Run | Jun Mat Min Exi Machines Accessed 12 | . 8 3 1 Terminals 7 | . 6 1 . Fabricators . | . . . . Repair Stations 1 | . 1 . . Recycling Units 1 | . 1 . . Scanalyzers . | . . . . Garrison Access . | . . . . Total Hacks 35 | . 29 5 1 Successful 18 | . 14 3 1 Failed 16 | . 14 2 . Catastrophic . | . . . . Database Lockouts 1 | . 1 . . Manual 18 | . 16 2 . Terminals 22 | . 19 3 . Fabricators . | . . . . Repair Stations 8 | . 8 . . Recycling Units 2 | . 2 . . Scanalyzers . | . . . . Garrison Access . | . . . . Terminal Hacks 8 | . 4 3 1 Record 1 | . . . 1 Part Schematic 1 | . . 1 . Robot Schematic 1 | . 1 . . Prototype ID Bank 2 | . 2 . . Open Door 2 | . . 2 . Locate Traps 1 | . 1 . . Fabricator Hacks . | . . . . Repair Station Hacks 8 | . 8 . . Scan Component 4 | . 4 . . Repair 4 | . 4 . . Recycling Unit Hacks 1 | . 1 . . Report Inventory 1 | . 1 . . Scanalyzer . | . . . . Garrison Access Hacks . | . . . . Unauthorized Hacks 1 | . 1 . . Terminals 1 | . 1 . . Botnet 1 | . 1 . . Fabricators . | . . . . Repair Stations . | . . . . Recycling Units . | . . . . Scanalyzers . | . . . . Garrison Access . | . . . . Data Cores Recovered . | . . . . Used . | . . . . Hacking Detections 8 | . 7 1 . Full Trace Events . | . . . . Feedback Events . | . . . . Feedback Blocked . | . . . . Robot Schematics Acquired 1 | . 1 . . Robots Built . | . . . . Authchips . | . . . . Time . | . . . . Total Robot Build Rating . | . . . . Part Schematics Acquired 1 | . . 1 . Parts Built . | . . . . Authchips . | . . . . Time . | . . . . Total Part Build Rating . | . . . . Parts Repaired 4 | . 4 . . Time 104 | . 104 . . Parts Recycled . | . . . . Recycled Matter . | . . . . Retrieved Matter . | . . . . Retrieved Components . | . . . . Parts Scanalyzed . | . . . . Part Schematics Acquired . | . . . . Parts Damaged . | . . . . Bothacking | -11 -10 -10 -10 ------------ Run | Jun Mat Min Exi Used RIF Installer . | . . . . Robots Hacked 4 | . . . 4 Non-combat 3 | . . . 3 Combat 1 | . . . 1 Robot Hacks Applied 5 | . . . 5 parse_system 5 | . . . 5 Relay Couplers Released . | . . . . Fabnet Peak Effective % . | . . . . Robots Rewired . | . . . . Allies Hacked . | . . . . Hacks Repelled . | . . . . Allies | -11 -10 -10 -10 -------- Run | Jun Mat Min Exi Total Allies . | . . . . Largest Group . | . . . . Highest-Rated Group . | . . . . Highest-Rated Ally . | . . . . Total Orders 2 | . . 1 1 STAY 1 | . . . 1 RETURN 1 | . . 1 . Ally Attacks 1 | . . . 1 Total Damage . | . . . . Kills . | . . . . Allies Corrupted . | . . . . Allies Melted . | . . . . Intel | -11 -10 -10 -10 ------- Run | Jun Mat Min Exi Robot Analysis Total . | . . . . Derelict Logs Recovered 1 | . . 1 . Drone Launches 2 | . . 2 . Drone Recoveries 2 | . . 1 1 Exploration | -11 -10 -10 -10 ------------- Run | Jun Mat Min Exi Turns Passed 4955 | 93 1886 1342 1634 Spaces Moved 2736 | 47 1017 687 985 Core 5 | 5 . . . Treads 264 | 42 222 . . Legs . | . . . . Wheels 2467 | . 795 687 985 Hover . | . . . . Flight . | . . . . Fastest Speed 50 | 50 130 175 145 Average Speed 158 | 151 152 175 153 Slowest Speed 320 | 160 320 175 175 Overloaded Moves . | . . . . Propulsion Burnouts . | . . . . Robots Hopped . | . . . . Cave-ins Triggered . | . . . . Exploration Rate (%) 66 | 4 99 98 64 Regions Visited 3 Branch Regions 2 Pre-discovered Areas 2 | . . 1 1 Known Exits Taken . | . . . . Unknown Exits Taken 3 | 1 1 1 . Scrap Searched 1 | . . 1 . Spaces Dug 15 | . 7 8 . Terrain Destroyed 100 | . 54 37 9 Melee . | . . . . Projectile . | . . . . AOE 100 | . 54 37 9 Terrain Rammed . | . . . . Walls Destroyed . | . . . . Machines Disabled . | . . . . Actions | -11 -10 -10 -10 --------- Run | Jun Mat Min Exi Total 3187 | 61 1244 815 1067 Wait 197 | . 111 84 2 Move 2733 | 46 1016 686 985 Hop . | . . . . Pick Up 49 | 5 21 8 15 Fast Attach 16 | 6 5 5 . Attach 13 | 1 4 1 7 Detach 4 | . 3 . 1 Swap 36 | . 19 11 6 Drop 39 | . 5 10 24 Fire 94 | 3 60 9 22 Melee 5 | . . . 5 Ram 1 | . . 1 . Kick . | . . . . Crush . | . . . . Escape Stasis . | . . . . Rewire . | . . . . Trap . | . . . . Miscellaneous . | . . . . Route ------- -11/Junkyard -10/Materials (discovered 6 exits: [*Mat x3] / *Min x2 / [*Sub]) -10/Mines (discovered 4 exits: [*Mat x2] / *Exi / [*Sub]) -10/Exiles (discovered 1 exit: [*Min]) History --------- Turn | Location | Event 10 | -11/Junkyard | Discovered new exit (range 14) 94 | -11/Junkyard | Entered Materials 148 | -10/Materials | Discovered new exit (range 16) 310 | -10/Materials | Build established: Mutant 471 | -10/Materials | Discovered new exit (range 10) 600 | -10/Materials | Derelicts attacked the area 718 | -10/Materials | Lost 4 parts (1p1n1u1w) 951 | -10/Materials | Repaired Lgt. Treads 1011 | -10/Materials | Repaired Lgt. Treads 1038 | -10/Materials | Repaired Lgt. Treads 1065 | -10/Materials | Repaired Lgt. Assault Rifle 1093 | -10/Materials | Discovered new exit (range 11) 1170 | -10/Materials | Discovered new exit (range 5) 1486 | -10/Materials | Discovered new exit (range 9) 1599 | -10/Materials | Discovered new exit (range 6) 1630 | -10/Materials | Central database locked down 1980 | -10/Materials | Entered Mines 2062 | -10/Mines | Assembled infested the area 2252 | -10/Mines | Discovered new exit (range 5) 2332 | -10/Mines | A weapon hastily lodged in a ceiling crevice suddenly fell to the ground 2408 | -10/Mines | Discovered new exit (range 6) 2591 | -10/Mines | Learned location of Storage (-7) 2683 | -10/Mines | Found the Drone Emporium 2689 | -10/Mines | Found Prototype Device 2690 | -10/Mines | Identified Splice Drone Bay 2796 | -10/Mines | Discovered new exit (range 15) 2883 | -10/Mines | Met a Derelict who couldn't figure out how to use a Trap Extractor 2965 | -10/Mines | Deemed a non-threat by the Exiles lab entrance 2965 | -10/Mines | Discovered new exit (range 5) 3133 | -10/Mines | Learned Materials security intel 3322 | -10/Mines | Entered Exiles 3322 | -10/Exiles | Accompanied by 1 ally 3347 | -10/Exiles | Discovered new exit (range 15) 3464 | -10/Exiles | Met 8R-AWN 3486 | -10/Exiles | Met EX-HEX 3697 | -10/Exiles | Met EX-BIN 3752 | -10/Exiles | Met EX-DEC 3799 | -10/Exiles | Learned location of Zion (-6) 4877 | -10/Exiles | Attacked by the Exiles 4898 | -10/Exiles | Core integrity fell below 50% 4927 | -10/Exiles | Core integrity fell below 20% 4956 | -10/Exiles | Destroyed by 8R-AWN with 8R-AWN's Boregun Last Messages --------------- 04925_ Extracted 1 matter. 04926_ Penetrated by HV Slug. 04929_ Extracted 1 matter. 04931_ Penetrated by HV Slug. 04931_ System corrupted: Lgt. Assault Rifle jammed. 04935_ HV Slug penetrates Wall. 04936_ Extracted 1 matter. 04939_ Penetrated by HV Slug. 04939_ Plasma Cutter destroyed. 04939_ Penetrated by HV Slug. 04940_ System corrupted: Matter fused (-10). 04940_ Extracted 10 matter. 04943_ Penetrated by HV Slug. 04944_ Extracted 10 matter. 04945_ Extracted 2 matter. 04948_ Penetrated by HV Slug. 04950_ Extracted 2 matter. 04952_ Penetrated by HV Slug. 04953_ Extracted 2 matter. 04956_ Penetrated by HV Slug. Map ----- +----------------------------------------------------+ | """#???????????????????????????????????? | | """#???????????????????????????????????? | | """#???????????????????????????????????? | | """##??????????????????????????????????? | | """""??????????????????????????????????? | | """##??????????????????????????????????? | | "X" """""??????????????????????????????????? | | """ #???????????????????????????????????? | | """""""""#???????????????????????????????????? | | ###########???????????????????????????????????? | | #?????????????????????????????????????????????? | | #?????????????????????????????????????????????? | | ##????????????????????????????????????????????? | | ##???###########?????????????????????????????? | | #####"""" """"##????????????????????????????? | | " """ """"##???????????????????????????? | | "" " #???????????????????????????? | | " """#???????????????????????????? | | a"#???????????#####???????????? | | " "##?????????##" #???????????? | | "###???????#" #???????????? | | " ""#??????##" ##??????????? | | """ #????### ###????????# | | ####""" ##???# ########## | | ???##""" !##?## #""""## | | ????#"""" !@### | | ???##"" !g ## | | ####"""" #### | | #""" ""#?#"""""#### | | "" #"""##?#######??#### | | ######??????????????### | | #?????????????????????? | | " ##?????????????????????? | | "" "" ""##??????????????????????? | | ##""" " " ""# "##???????????????????????? | | ######""" """## ##????????????????????????? | | #????###""""### # #?????????????????????????? | | ####???######?### ####??????????????????????????? | | " #????????????##??????????????????????????????? | | !#????????????????????????????????????????????? | | "#????????????????????????????????????????????? | | ""!"#????????????????????????????????????????????? | | #####????????????????????????????????????????????? | | ?????????????????????????????????????????????????? | | ?????????????????????????????????????????????????? | | ?????????????????????????????????????????????????? | | ?????????????????????????????????????????????????? | | ?????????????????????????????????????????????????? | | ?????????????????????????????????????????????????? | | ?????????????????????????????????????????????????? | +----------------------------------------------------+ Best States ------------- Heat Dissipation 25 Energy Generation 15 Energy Capacity 250 Matter Stores 300 Matter Capacity 300 Sight Range 21 Terrain Scan Range 16 Terrain Scan Density 10 Evasion (%) 40 Recoil Reduction 2 Item Schematics ----------------- Huge Storage Unit | -10/Mines | Hacked Robot Schematics ------------------ M-13 Machinist | -10/Materials | Hacked Fabricated ------------ Nothing Alien Tech Used ----------------- None Achievements -------------- None Challenges ------------ None Game ------ Seed MachineAngularCharge Manual? 0 Play Time 00:35:40 Cumulative 414.4 hours Start 2023.12.01 @ 11:24:21 End 2023.12.01 @ 12:49:29 Sessions 5 Manual Loads 0 Difficulty Rogue Special Mode None Game No. 187 Rogue 187 Adventurer 0 Explorer 0 Win Type - Total 9 Types 6/0/1/1/0/0/0/1/0 Lore% 85 Gallery% 91 Achievement% 71 Wizard Run 0 Options --------- ASCII 1 Keyboard 1 Movement Vi Keybinds 0 Fullscreen 2 Font 24/Cog Map View 76x50 Tactical HUD 1 Map Filters NONE Filters NONE Steam 0 RUN: 487e2b06-8456-45d1-b45c-ed7af1235aac